bitfinex-derivatives/quotes_ETHF0:USTF0_20250405
["timestamp","ask_amount","ask_price","bid_price","bid_amount"]
[1743892220522,0.00836423,1792.7,1792.6,9.81524373]
[1743892220926,0.00836423,1792.7,1792.6,9.07238]
[1743892221117,0.00836423,1792.7,1792.6,9.81534919]
[1743892221320,0.00836423,1792.7,1792.6,9.81535552]
[1743892221521,0.00836423,1792.7,1792.6,12.3153444]
[1743892221821,0.00836423,1792.7,1792.6,9.8153444]
[1743892224917,0.00836423,1792.7,1792.6,9.81509225]
[1743892226726,0.00836423,1792.7,1792.6,9.81507172]
[1743892227522,0.00836423,1792.7,1792.6,12.31507172]
[1743892227729,21.19474964,1793.0,1792.9,0.78115]
[1743892227919,21.19474964,1793.0,1792.9,5.13184172]
[1743892228425,21.19474964,1793.0,1792.9,7.31854172]
[1743892229423,19.77294964,1793.0,1792.9,7.31854172]
[1743892229624,39.35763244,1793.1,1793.0,0.78111]
[1743892229625,21.78403509,1793.1,1793.0,0.78111]
[1743892229822,21.78403509,1793.1,1793.0,6.92140172]
[1743892230225,21.78403509,1793.1,1793.0,6.92115265]
[1743892233027,0.00836423,1793.1,1793.0,6.92115265]
[1743892233829,0.00836423,1793.1,1793.0,6.92060771]
[1743892234423,0.00836423,1793.1,1793.0,3.71280771]
[1743892234624,0.00836423,1793.1,1793.0,6.92060771]
[1743892235821,0.00836423,1793.1,1793.0,6.92033206]
[1743892237532,0.00836423,1793.1,1793.0,6.91986161]
[1743892239437,0.00836423,1793.1,1793.0,6.91977058]
[1743892242434,0.00836423,1793.1,1793.0,3.71197058]
[1743892242636,0.00836423,1793.1,1793.0,6.91977058]
[1743892243143,0.00836423,1793.1,1793.0,6.91948246]
[1743892246746,0.00836423,1793.1,1793.0,6.91979489]
[1743892248246,0.00836423,1793.1,1793.0,3.71199489]
[1743892248446,0.00836423,1793.1,1793.0,6.91979489]
[1743892250750,0.00836423,1793.1,1793.0,9.41979489]
[1743892250955,1.4884,1793.6,1793.5,0.78089]
[1743892251254,1.4884,1793.6,1793.5,5.12797489]
[1743892251752,1.4884,1793.6,1793.5,6.54667489]
[1743892254152,1.4884,1793.6,1793.5,6.54600888]
[1743892256050,1.4884,1793.6,1793.5,6.54581283]
[1743892257852,1.4884,1793.6,1793.5,6.54576171]
[1743892258451,0.75506423,1793.7,1793.6,0.78084]
[1743892258650,0.75506423,1793.7,1793.6,2.97561171]
[1743892259655,0.75506423,1793.7,1793.6,2.97559484]
[1743892261153,0.75506423,1793.7,1793.6,1.52108092]
[1743892261545,0.75506423,1793.7,1793.6,5.12608092]
[1743892262655,0.75506423,1793.7,1793.6,5.12639475]
[1743892264855,0.75506423,1793.7,1793.6,1.52139475]
[1743892266261,0.75506423,1793.7,1793.6,1.52163307]
[1743892269961,0.75506423,1793.7,1793.6,1.52190741]
[1743892271756,0.75506423,1793.7,1793.6,0.78084]
[1743892271957,0.75506423,1793.7,1793.6,1.52213989]
[1743892273765,0.75506423,1793.7,1793.6,1.52226412]
[1743892275466,0.75506423,1793.7,1793.6,1.52247162]
[1743892277271,0.75506423,1793.7,1793.6,0.78084]
[1743892277569,0.75506423,1793.7,1793.6,1.52262235]
[1743892278168,0.00836423,1793.7,1793.6,1.52262235]
[1743892278358,0.00836423,1793.7,1793.6,3.04522235]
[1743892280968,0.00836423,1793.7,1793.6,1.52347199]
[1743892281169,0.00836423,1793.7,1793.6,2.95930469]
[1743892283972,0.00836423,1793.7,1793.6,2.95932163]
[1743892284771,0.00836423,1793.7,1793.6,2.95933124]
[1743892286470,0.00836423,1793.7,1793.6,6.16713124]
[1743892288170,0.00836423,1793.7,1793.6,2.95933124]
[1743892288473,0.00836423,1793.7,1793.6,6.16713124]
[1743892289671,17.57359735,1794.0,1793.9,0.78071]
[1743892289870,17.57359735,1794.0,1793.9,5.12740124]
[1743892290273,17.57359735,1794.0,1793.9,7.34193504]
[1743892290475,18.31149735,1794.0,1793.9,7.34193504]
[1743892290870,0.7379,1794.0,1793.9,7.34193504]
[1743892291172,1.42046423,1794.1,1794.0,0.78067]
[1743892291367,2.15836423,1794.1,1794.0,1.52319504]
[1743892292771,2.15836423,1794.1,1794.0,2.99719504]
[1743892293476,1.42046423,1794.1,1794.0,2.99719504]
[1743892294068,1.42046423,1794.1,1794.0,2.9964924]
[1743892295768,1.42046423,1794.1,1794.0,2.99629987]
[1743892297576,1.42046423,1794.1,1794.0,2.25467]
[1743892297775,1.42046423,1794.1,1794.0,2.99617291]
[1743892301277,1.42046423,1794.1,1794.0,2.99610124]
[1743892306785,1.42046423,1794.1,1794.0,2.99557399]
[1743892310492,1.42046423,1794.1,1794.0,2.99544921]
[1743892311192,1.42046423,1794.1,1794.0,2.99543859]
[1743892316091,1.42046423,1794.1,1794.0,2.99588128]
[1743892317886,1.42046423,1794.1,1794.0,2.99619739]
[1743892319294,1.42046423,1794.1,1794.0,1.52219739]
[1743892321095,1.42046423,1794.1,1794.0,1.52290233]
[1743892322794,1.42046423,1794.1,1794.0,1.52298189]
[1743892326301,1.42046423,1794.1,1794.0,1.53060219]
[1743892328206,1.42046423,1794.1,1794.0,1.53057303]
[1743892330806,3.92046423,1794.1,1794.0,0.74990303]
[1743892331002,4.70109423,1794.1,1794.0,0.74990303]
[1743892331205,7.90889423,1794.1,1794.0,0.74990303]
[1743892331505,7.12826423,1794.1,1793.5,3.98866]
[1743892331711,3.98864,1793.7,1793.4,0.78928423]
[1743892331905,2.2583,1793.6,1793.5,0.78089]
[1743892332108,2.2583,1793.6,1793.4,0.78926423]
[1743892332109,3.03914,1793.6,1793.4,0.78926423]
[1743892332407,1.5273,1793.5,1793.4,0.78926423]
[1743892335611,1.5273,1793.5,1793.4,1.53186423]
[1743892336710,0.731,1793.6,1793.5,0.78089]
[1743892336912,0.731,1793.6,1793.5,2.17199]
[1743892337114,2.2128,1793.6,1793.5,2.17199]
[1743892338008,2.2128,1793.6,1793.5,0.78089]
[1743892343413,2.99364,1793.6,1793.5,0.78089]
[1743892343620,2.99364,1793.6,1793.5,1.5231296]
[1743892348123,2.99364,1793.6,1793.5,2.2363296]
[1743892348441,2.99364,1793.6,1793.5,1.49409]
[1743892348619,2.99364,1793.6,1793.5,2.23653355]
[1743892350316,2.99364,1793.6,1793.5,1.45579081]
[1743892352122,2.99364,1793.6,1793.5,1.45598325]
[1743892352324,2.99364,1793.6,1793.5,2.94778325]
[1743892352619,2.99364,1793.6,1793.5,3.72867325]
[1743892354326,2.2128,1793.6,1793.5,3.72867325]
[1743892355922,2.2128,1793.6,1793.5,3.72910656]
[1743892361231,2.99364,1793.6,1793.5,3.72910656]
[1743892362227,2.2128,1793.6,1793.5,3.72910656]
[1743892363122,2.2128,1793.6,1793.5,2.98589]
[1743892363322,1.4818,1793.6,1793.5,3.73191356]
[1743892363523,0.78083,1793.7,1793.6,0.78084]
[1743892363725,0.78083,1793.7,1793.6,3.01276356]
[1743892366231,2.21583,1793.7,1793.6,3.01276356]
[1743892368733,2.21583,1793.7,1793.6,3.01260051]
[1743892370533,2.21583,1793.7,1793.6,3.01259103]
[1743892371938,19.78942735,1793.7,1793.6,3.01259103]
[1743892373235,19.00859735,1793.7,1793.6,3.01259103]
[1743892373533,17.57359735,1793.7,1793.6,3.01259103]
[1743892374324,17.57359735,1793.7,1793.6,3.01246175]
[1743892376039,17.57359735,1793.7,1793.6,3.01239874]
[1743892376240,43.8326905,1793.8,1793.6,3.01239874]
[1743892376435,43.8326905,1793.8,1793.7,2.23195874]
[1743892376735,43.8326905,1793.8,1793.7,2.92705874]
[1743892377830,43.8326905,1793.8,1793.7,2.1814]
[1743892378039,43.8326905,1793.8,1793.7,2.92700999]
[1743892379538,43.8326905,1793.8,1793.7,0.74560999]
[1743892379835,44.5520905,1793.8,1793.7,0.74560999]
[1743892381239,0.78082,1793.7,1793.5,3.74556]
[1743892381438,2.89122,1793.7,1793.6,0.74563151]
[1743892383335,6.09902,1793.7,1793.6,0.74563151]
[1743892386041,6.09902,1793.7,1793.6,2.21813151]
[1743892386442,6.09902,1793.7,1793.6,2.21817301]
[1743892386941,5.40472,1793.7,1793.6,2.21817301]
[1743892387142,5.40472,1793.7,1793.6,2.99901301]
[1743892390146,5.40472,1793.7,1793.6,1.52649066]
[1743892390351,6.13982,1793.7,1793.6,1.52649066]
[1743892391654,6.13982,1793.7,1793.6,0.74565066]
[1743892392754,6.13982,1793.7,1793.6,0.74560539]
[1743892393058,6.13982,1793.7,1793.6,2.92174539]
[1743892393654,2.93202,1793.7,1793.6,2.92174539]
[1743892393847,6.13982,1793.7,1793.6,2.92152391]
[1743892394158,2.93202,1793.7,1793.6,2.92152391]
[1743892394359,6.13982,1793.7,1793.6,2.92152391]
[1743892395048,3.98862,1793.7,1793.6,2.92152391]
[1743892395759,3.98862,1793.7,1793.6,2.92144144]
[1743892396759,3.98862,1793.7,1793.6,1.52614144]
[1743892396959,6.93472,1793.7,1793.6,1.52614144]
[1743892397362,6.23522,1793.7,1793.6,1.52614144]
[1743892397554,6.23522,1793.7,1793.6,2.93704144]
[1743892398255,3.02742,1793.7,1793.6,2.93704144]
[1743892398480,6.23522,1793.7,1793.6,2.93704144]
[1743892399162,3.98862,1793.7,1793.6,2.93704144]
[1743892399363,3.98862,1793.7,1793.6,2.9369222]
[1743892400767,0.78082,1793.7,1793.6,2.9369222]
[1743892400964,43.7169105,1793.8,1793.6,2.9369222]
[1743892401165,43.7169105,1793.8,1793.7,2.98508898]
[1743892401466,43.7169105,1793.8,1793.7,2.2401]
[1743892401669,43.7169105,1793.8,1793.7,2.9850945]
[1743892401966,23.94396086,1793.8,1793.7,2.9850945]
[1743892403069,23.94396086,1793.8,1793.7,2.98502368]
[1743892403968,23.16317086,1793.8,1793.7,3.76582368]
[1743892404167,21.77567086,1793.8,1793.7,3.76582368]
[1743892404862,21.77567086,1793.8,1793.7,3.0209]
[1743892405057,21.77567086,1793.8,1793.7,3.76531147]
[1743892406370,21.77567086,1793.8,1793.7,3.76467161]
[1743892407069,21.28247742,1794.0,1793.8,0.78074]
[1743892407268,21.28247742,1794.0,1793.9,0.74377161]
[1743892407569,21.28247742,1794.0,1793.9,1.44467161]
[1743892407771,21.28247742,1794.0,1793.9,2.94897161]
[1743892409170,21.28247742,1794.0,1793.9,3.72968161]
[1743892414075,21.28247742,1794.0,1793.9,3.72854428]
[1743892415970,21.28247742,1794.0,1793.9,3.72850831]
[1743892417074,19.74297742,1794.0,1793.9,3.72850831]
[1743892417673,19.74297742,1794.0,1793.9,3.72837223]
[1743892417869,19.74297742,1794.0,1793.9,3.72830528]
[1743892419575,19.74297742,1794.0,1793.9,3.72791852]
[1743892420874,0.00836423,1794.1,1794.0,0.78067]
[1743892421075,0.00836423,1794.1,1794.0,3.03957852]
[1743892421463,0.00836423,1794.1,1794.0,3.03950699]
[1743892423174,0.00836423,1794.1,1794.0,2.29757]
[1743892423377,0.00836423,1794.1,1794.0,3.03947187]
[1743892428777,0.00836423,1794.1,1794.0,3.03951187]
[1743892430679,0.00836423,1794.1,1794.0,3.03968498]
[1743892434279,0.00836423,1794.1,1794.0,3.04015042]
[1743892436283,0.00836423,1794.1,1794.0,3.03998885]
[1743892437883,0.00836423,1794.1,1794.0,3.03980692]
[1743892439686,0.00836423,1794.1,1794.0,3.03971455]
[1743892441088,0.00836423,1794.1,1794.0,3.03975755]
[1743892442787,0.00836423,1794.1,1794.0,3.03990852]
[1743892444692,1.47226423,1794.1,1794.0,3.04016474]
[1743892447389,1.47226423,1794.1,1794.0,3.04811186]
[1743892451996,1.47226423,1794.1,1794.0,3.04833109]
[1743892455698,1.47226423,1794.1,1794.0,3.04845926]
[1743892457598,1.47226423,1794.1,1794.0,3.04854245]
[1743892460798,1.47226423,1794.1,1794.0,1.53164245]
[1743892460997,5.51219423,1794.1,1794.0,0.75097245]
[1743892461303,8.71999423,1794.1,1794.0,0.75097245]
[1743892461802,8.71999423,1794.1,1794.0,0.75121301]
[1743892462505,8.71999423,1794.1,1794.0,0.75099586]
[1743892462901,8.71999423,1794.1,1794.0,1.53166586]
[1743892463197,8.71999423,1794.1,1794.0,1.53169099]
[1743892465305,6.21999423,1794.1,1794.0,1.53169099]
[1743892466705,6.21999423,1794.1,1794.0,1.53113736]
[1743892467604,25.18234165,1794.1,1794.0,1.53113736]
[1743892468106,21.97454165,1794.1,1794.0,1.53113736]
[1743892468501,21.97454165,1794.1,1794.0,0.78067]
[1743892468807,21.97454165,1794.1,1794.0,1.53101144]
[1743892470009,21.21524165,1794.1,1794.0,1.53101144]
[1743892470209,38.73505824,1794.1,1794.0,2.96571144]
[1743892470401,38.73505824,1794.1,1794.0,2.96556331]
[1743892472212,38.73505824,1794.1,1794.0,2.96563334]
[1743892474112,38.73505824,1794.1,1794.0,2.96562407]
[1743892480522,21.21524165,1794.1,1794.0,2.96562407]
[1743892481424,21.21524165,1794.1,1794.0,2.96577605]
[1743892486330,21.21524165,1794.1,1794.0,1.53107605]
[1743892487126,21.21524165,1794.1,1794.0,1.53155542]
[1743892488128,24.42304165,1794.1,1794.0,1.53155542]
[1743892488328,21.21524165,1794.1,1794.0,1.53155542]
[1743892490728,21.21524165,1794.1,1794.0,1.53190643]
[1743892492432,21.21524165,1794.1,1794.0,1.53186572]
[1743892494333,21.21524165,1794.1,1794.0,1.53182596]
[1743892498027,21.21524165,1794.1,1794.0,1.53173525]
[1743892499736,21.21524165,1794.1,1794.0,1.53156796]
[1743892501158,21.21524165,1794.1,1794.0,1.53122262]
[1743892502839,21.99587165,1794.1,1794.0,1.53122262]
[1743892503039,21.99587165,1794.1,1794.0,0.75055262]
[1743892503337,21.21524165,1794.1,1794.0,0.75055262]
[1743892504142,21.99587165,1794.1,1794.0,0.75055262]
[1743892504640,21.21524165,1794.1,1794.0,1.53122262]
[1743892505639,21.21524165,1794.1,1794.0,3.02552262]
[1743892506642,21.21524165,1794.1,1794.0,3.0255096]
[1743892508343,21.21524165,1794.1,1794.0,3.02481624]
[1743892512141,21.21524165,1794.1,1794.0,3.02480449]
[1743892512646,21.21524165,1794.1,1794.0,3.02485017]
[1743892513837,21.21524165,1794.1,1794.0,3.02488175]
[1743892515646,19.75134165,1794.1,1794.0,3.02472532]
[1743892516851,21.18124165,1794.1,1794.0,3.02472532]
[1743892517448,21.18124165,1794.1,1794.0,3.02455868]
[1743892519348,21.18124165,1794.1,1794.0,3.02443805]
[1743892521854,21.18124165,1794.1,1794.0,3.02503081]
[1743892523050,21.18124165,1794.1,1794.0,3.02503617]
[1743892527351,19.75134165,1794.1,1794.0,3.02503617]
[1743892527553,19.75134165,1794.1,1794.0,6.61703617]
[1743892527854,19.75134165,1794.1,1794.0,6.61727982]
[1743892528555,19.75134165,1794.1,1794.0,6.61744042]
[1743892531252,19.75134165,1794.1,1794.0,9.82524042]
[1743892531474,15.34134165,1794.1,1794.0,9.82524042]
[1743892532160,15.34134165,1794.1,1794.0,9.82444037]
[1743892532961,0.00835999,1794.2,1794.1,0.78063]
[1743892533157,0.00835999,1794.2,1794.1,4.46010037]
[1743892534051,0.00835999,1794.2,1794.1,4.4595729]
[1743892535361,0.00835999,1794.2,1794.1,7.6673729]
[1743892537768,0.00835999,1794.2,1794.1,7.66666371]
[1743892541360,0.00835999,1794.2,1794.1,7.66630681]
[1743892552375,0.00835999,1794.2,1794.1,7.66658918]
[1743892555075,0.00835999,1794.2,1794.1,7.66681353]
[1743892556572,0.00835999,1794.2,1794.1,4.45901353]
[1743892556779,0.00835999,1794.2,1794.1,7.66681353]
[1743892559574,0.00835999,1794.2,1794.1,4.45901353]
[1743892559779,0.00835999,1794.2,1794.1,7.66681353]
[1743892561381,0.00835999,1794.2,1794.1,4.45901353]
[1743892561682,0.00835999,1794.2,1794.1,7.66681353]
[1743892562782,0.00835999,1794.2,1794.1,7.66805265]
[1743892562984,0.00835999,1794.2,1794.1,7.66799786]
[1743892563178,0.00835999,1794.2,1794.1,4.46019786]
[1743892563374,0.00835999,1794.2,1794.1,7.66799786]
[1743892564583,0.00835999,1794.2,1794.1,7.6676024]
[1743892566589,0.00835999,1794.2,1794.1,7.66746842]
[1743892567091,0.00835999,1794.2,1794.1,4.45966842]
[1743892567390,0.00835999,1794.2,1794.1,7.66746842]
[1743892568291,0.00835999,1794.2,1794.1,7.66747656]
[1743892568482,0.00835999,1794.2,1794.1,4.45967656]
[1743892568679,0.00835999,1794.2,1794.1,7.66747656]
[1743892569700,1.39835999,1794.2,1794.1,7.66747656]
[1743892570095,1.39835999,1794.2,1794.1,7.66757375]
[1743892571895,1.39835999,1794.2,1794.1,7.66754138]
[1743892573310,1.39835999,1794.2,1794.1,4.45974138]
[1743892573600,1.39835999,1794.2,1794.1,7.66754138]
[1743892573900,1.39835999,1794.2,1794.1,7.66746505]
[1743892574693,1.39835999,1794.2,1794.1,4.73766505]
[1743892575004,1.39835999,1794.2,1794.1,8.32566505]
[1743892575603,1.39835999,1794.2,1794.1,8.32572853]
[1743892577409,1.39835999,1794.2,1794.1,8.32556365]
[1743892580602,1.39835999,1794.2,1794.1,5.11776365]
[1743892580825,1.39835999,1794.2,1794.1,8.32556365]
[1743892581107,1.39835999,1794.2,1794.1,5.11776365]
[1743892581310,1.39835999,1794.2,1794.1,8.32556365]
[1743892581709,1.39835999,1794.2,1794.1,9.78046365]
[1743892583009,1.39835999,1794.2,1794.1,4.73756365]
[1743892583203,1.39835999,1794.2,1794.1,8.32556365]
[1743892584210,1.39835999,1794.2,1794.1,4.73756365]
[1743892584510,3.89835999,1794.2,1794.1,4.73756365]
[1743892585312,1.39835999,1794.2,1794.1,4.73756365]
[1743892586716,1.39835999,1794.2,1794.1,4.73731378]
[1743892588417,1.39835999,1794.2,1794.1,4.73720802]
[1743892597320,1.39835999,1794.2,1794.1,1.52940802]
[1743892598221,1.39835999,1794.2,1794.1,2.98220802]
[1743892599517,1.39835999,1794.2,1794.1,2.98246386]
[1743892604025,1.39835999,1794.2,1794.1,3.70636386]
[1743892605026,1.39835999,1794.2,1794.1,3.70650768]
[1743892606826,1.39835999,1794.2,1794.1,3.70655673]
[1743892611032,1.39835999,1794.2,1794.1,3.70675785]
[1743892614936,0.00835999,1794.2,1794.1,3.70675785]
[1743892616735,0.00835999,1794.2,1794.1,3.7069706]
[1743892618340,0.00835999,1794.2,1794.1,3.70712676]
[1743892619732,0.00835999,1794.2,1794.1,3.70711171]
[1743892619939,1.50715999,1794.2,1794.1,3.70711171]
[1743892620439,0.00835999,1794.2,1794.1,3.70711171]
[1743892621138,0.00835999,1794.2,1794.1,3.70700547]
[1743892622645,0.00835999,1794.2,1794.1,3.70701718]
[1743892626749,0.00835999,1794.2,1794.1,6.20701718]
[1743892627154,0.00835999,1794.2,1794.1,3.70701718]
[1743892629754,0.00835999,1794.2,1794.1,6.91481718]
[1743892637265,0.00835999,1794.2,1794.1,6.9147235]
[1743892639166,0.00835999,1794.2,1794.1,6.91481794]
[1743892640866,0.00835999,1794.2,1794.1,6.91488882]
[1743892642267,0.00835999,1794.2,1794.1,6.91488817]
[1743892644765,0.00835999,1794.2,1794.1,6.91488931]
[1743892645571,0.00835999,1794.2,1794.1,3.70708931]
[1743892645865,0.00835999,1794.2,1794.1,6.91488931]
[1743892647065,0.00835999,1794.2,1794.1,3.70708931]
[1743892647264,0.00835999,1794.2,1794.1,6.91488931]
[1743892650370,0.00835999,1794.2,1794.1,6.91512884]
[1743892651975,0.00835999,1794.2,1794.1,6.91506478]
[1743892653774,0.00835999,1794.2,1794.1,6.91525754]
[1743892654076,1.54815999,1794.2,1794.1,6.91525754]
[1743892657270,1.54815999,1794.2,1794.1,3.70745754]
[1743892657478,1.54815999,1794.2,1794.1,6.91520433]
[1743892658080,1.54815999,1794.2,1794.1,3.70740433]
[1743892658478,1.54815999,1794.2,1794.1,6.91520433]
[1743892659676,1.54815999,1794.2,1794.1,4.73850433]
[1743892659877,1.54815999,1794.2,1794.1,8.32250433]
[1743892661083,1.54815999,1794.2,1794.1,8.32246575]
[1743892662884,1.54815999,1794.2,1794.1,8.3223468]
[1743892665288,0.00835999,1794.2,1794.1,9.7612468]
[1743892665477,1.46455999,1794.2,1794.1,9.7612468]
[1743892665678,1.46455999,1794.2,1794.1,10.4843468]
[1743892666686,1.46455999,1794.2,1794.1,10.48416615]
[1743892667686,1.46455999,1794.2,1794.1,8.32216615]
[1743892668387,1.46455999,1794.2,1794.1,8.32221967]
[1743892668886,1.46455999,1794.2,1794.1,9.81371967]
[1743892669086,1.46455999,1794.2,1794.1,10.50741967]
[1743892669688,0.00835999,1794.2,1794.1,10.50741967]
[1743892670287,0.00835999,1794.2,1794.1,10.50733599]
[1743892674092,0.00835999,1794.2,1794.1,10.50720539]
[1743892675680,0.00835999,1794.2,1794.1,10.5071724]
[1743892677494,0.00835999,1794.2,1794.1,10.50708823]
[1743892679396,0.00835999,1794.2,1794.1,10.50707772]
[1743892680890,0.00835999,1794.2,1794.1,10.50710381]
[1743892683392,0.00835999,1794.2,1794.1,10.5071468]
[1743892688002,0.00835999,1794.2,1794.1,10.50705527]
[1743892690514,0.00835999,1794.2,1794.1,7.29925527]
[1743892690714,0.00835999,1794.2,1794.1,10.50705527]
[1743892695216,0.00835999,1794.2,1794.1,7.29925527]
[1743892695421,0.00835999,1794.2,1794.1,7.29955695]
[1743892695719,0.00835999,1794.2,1794.1,10.50735695]
[1743892702616,0.00835999,1794.2,1794.1,9.75763]
[1743892702822,0.00835999,1794.2,1794.1,10.50750909]
[1743892707326,0.00835999,1794.2,1794.1,7.29970909]
[1743892707525,0.00835999,1794.2,1794.1,10.50750909]
[1743892708626,0.00835999,1794.2,1794.1,7.29970909]
[1743892708825,0.00835999,1794.2,1794.1,10.50750909]
[1743892710019,0.00835999,1794.2,1794.1,7.29963432]
[1743892710215,0.00835999,1794.2,1794.1,10.50743432]
[1743892710628,0.00835999,1794.2,1794.1,7.29963432]
[1743892710927,0.00835999,1794.2,1794.1,10.50743432]
[1743892711125,0.00835999,1794.2,1794.1,7.29963432]
[1743892711332,0.00835999,1794.2,1794.1,10.50743432]
[1743892711828,0.00835999,1794.2,1794.1,9.75763]
[1743892712032,0.00835999,1794.2,1794.1,10.50743471]
[1743892714426,0.00835999,1794.2,1794.1,10.50750163]
[1743892715322,0.00835999,1794.2,1794.1,10.50550163]
[1743892715522,1.48105999,1794.2,1794.1,10.50555388]
[1743892719329,1.48105999,1794.2,1794.1,8.32035388]
[1743892721034,1.48105999,1794.2,1794.1,8.32093658]
[1743892721234,1.48105999,1794.2,1794.1,10.60103658]
[1743892721833,41.47383139,1794.8,1794.6,0.78038]
[1743892722031,1.5014,1794.7,1794.6,0.78038]
[1743892722232,1.5014,1794.7,1794.6,1.53089502]
[1743892722433,4.0014,1794.7,1794.6,1.53089502]
[1743892724035,4.0014,1794.7,1794.6,1.5309737]
[1743892724731,4.0014,1794.7,1794.6,1.53101426]
[1743892724931,5.4145,1794.7,1794.6,1.53101426]
[1743892726529,5.4145,1794.7,1794.6,1.53108175]
[1743892728332,5.4145,1794.7,1794.6,1.53105977]
[1743892729740,2.9145,1794.7,1794.6,1.53105977]
[1743892730241,2.9145,1794.7,1794.6,1.53109521]
[1743892735740,2.9145,1794.7,1794.6,1.53110061]
[1743892737436,2.9145,1794.7,1794.6,1.53109749]
[1743892740837,2.9145,1794.7,1794.6,1.53108903]
[1743892742443,2.9145,1794.7,1794.6,1.53112968]
[1743892744147,2.9145,1794.7,1794.6,1.53107599]
[1743892747850,2.9145,1794.7,1794.6,1.53093646]
[1743892749054,0.7583,1794.7,1794.6,1.53093646]
[1743892749550,0.7583,1794.7,1794.6,3.05393646]
[1743892750951,2.2743,1794.7,1794.6,3.05393646]
[1743892751552,2.2743,1794.7,1794.6,3.05399786]
[1743892755261,2.2743,1794.7,1794.6,3.05403481]
[1743892756054,21.97246053,1794.7,1794.6,3.05403481]
[1743892760763,21.97246053,1794.7,1794.6,1.53103481]
[1743892762566,21.97246053,1794.7,1794.6,0.78038]
[1743892762765,21.97246053,1794.7,1794.6,1.53111207]
[1743892763559,21.97246053,1794.7,1794.6,2.95621207]
[1743892763760,21.97246053,1794.7,1794.6,3.68851207]
[1743892764469,21.97246053,1794.7,1794.6,3.68846987]
[1743892766370,21.97246053,1794.7,1794.6,3.68844863]
[1743892766571,21.97246053,1794.7,1794.6,3.68845104]
[1743892770077,21.97246053,1794.7,1794.6,3.68848334]
[1743892771876,21.97246053,1794.7,1794.6,3.68851692]
[1743892772376,21.97246053,1794.7,1794.6,3.68851303]
[1743892775486,21.97246053,1794.7,1794.6,3.6885261]
[1743892777285,21.97246053,1794.7,1794.6,3.68854531]
[1743892777885,21.97246053,1794.7,1794.6,2.95624531]
[1743892778187,21.97246053,1794.7,1794.6,2.95625953]
[1743892778585,21.97246053,1794.7,1794.6,1.53115953]
[1743892778787,22.75283053,1794.7,1794.6,0.75077953]
[1743892779080,22.75283053,1794.7,1794.6,0.75103651]
[1743892780886,22.75283053,1794.7,1794.6,0.75071653]
[1743892782683,3.05467,1794.7,1794.6,0.75071653]
[1743892784387,3.05467,1794.7,1794.6,0.75051289]
[1743892786195,3.05467,1794.7,1794.6,0.75041946]
[1743892787991,3.05467,1794.7,1794.6,0.75034476]
[1743892789190,6.26247,1794.7,1794.6,0.75037843]
[1743892789792,6.26247,1794.7,1794.6,0.75037197]
[1743892792899,3.05467,1794.7,1794.6,0.75037197]
[1743892793098,6.26247,1794.7,1794.6,0.75037197]
[1743892796299,3.05467,1794.7,1794.6,0.75037197]
[1743892796495,6.26247,1794.7,1794.6,0.75037197]
[1743892797597,3.05467,1794.7,1794.6,0.75037197]
[1743892800203,3.05467,1794.7,1794.6,2.26537197]
[1743892802798,28.41034086,1794.7,1794.6,2.26537197]
[1743892803101,25.35567086,1794.7,1794.6,3.04578197]
[1743892803404,21.77567086,1794.7,1794.6,3.77948197]
[1743892803602,21.77567086,1794.7,1794.6,3.77986631]
[1743892805201,41.509086,1794.7,1794.6,3.77986631]
[1743892806205,41.509086,1794.7,1794.6,3.02911]
[1743892806398,41.509086,1794.7,1794.6,3.779923]
[1743892808908,41.509086,1794.7,1794.6,3.78020912]
[1743892815610,41.509086,1794.7,1794.6,3.77985987]
[1743892816109,41.509086,1794.7,1794.6,3.77985116]
[1743892819712,41.509086,1794.7,1794.6,3.77982799]
[1743892821515,41.509086,1794.7,1794.6,3.77984112]
[1743892822912,41.509086,1794.7,1794.6,3.77986769]
[1743892825115,41.509086,1794.7,1794.6,3.02911]
[1743892825413,41.509086,1794.7,1794.6,3.77992876]
[1743892826909,41.509086,1794.7,1794.6,3.02911]
[1743892827110,41.509086,1794.7,1794.6,3.77997703]
[1743892828720,41.509086,1794.7,1794.6,3.78001631]
[1743892830517,41.509086,1794.7,1794.6,3.77993619]
[1743892832719,21.77567086,1794.7,1794.6,3.77993619]
[1743892834112,21.77567086,1794.7,1794.6,3.77972289]
[1743892836012,21.77567086,1794.7,1794.6,3.77962265]
[1743892837321,23.24527086,1794.7,1794.6,3.77962265]
[1743892837736,23.24527086,1794.7,1794.6,3.77956902]
[1743892839621,23.24527086,1794.7,1794.6,3.77951556]
[1743892840420,21.77567086,1794.7,1794.6,3.77951556]
[1743892841322,21.77567086,1794.7,1794.6,3.77938456]
[1743892841522,21.77567086,1794.7,1794.6,3.77927635]
[1743892843426,19.73341514,1794.8,1794.7,0.78037]
[1743892843628,19.73341514,1794.8,1794.7,3.68903635]
[1743892844828,19.73341514,1794.8,1794.7,3.68890227]
[1743892846636,19.73341514,1794.8,1794.7,3.68881313]
[1743892848432,19.73341514,1794.8,1794.7,3.68862894]
[1743892850232,19.73341514,1794.8,1794.7,3.68862193]
[1743892852038,19.73341514,1794.8,1794.7,3.68855058]
[1743892857435,1.4107,1794.9,1794.8,0.78032]
[1743892857636,1.4107,1794.9,1794.8,2.99610058]
[1743892861237,2.1046,1794.9,1794.8,2.99610058]
[1743892861444,2.1046,1794.9,1794.8,1.53000058]
[1743892861738,2.8745,1794.9,1794.8,1.53000058]
[1743892862238,2.8745,1794.9,1794.8,1.53034814]
[1743892868434,2.8745,1794.9,1794.8,2.98494814]
[1743892869340,2.8745,1794.9,1794.8,2.9853223]
[1743892871244,2.8745,1794.9,1794.8,2.9854357]
[1743892874847,2.8745,1794.9,1794.8,2.9855093]
[1743892879355,42.289326,1795.0,1794.9,0.78028]
[1743892879556,42.289326,1795.0,1794.9,3.7636693]
[1743892879754,43.747626,1795.0,1794.9,3.7636693]
[1743892880154,43.747626,1795.0,1794.9,3.76385454]
[1743892881655,21.97195514,1795.0,1794.9,3.76385454]
[1743892882959,21.97195514,1795.0,1794.9,3.01308]
[1743892883352,0.78028,1794.9,1794.8,0.78031]
[1743892883558,3.67788,1794.9,1794.8,0.78031]
[1743892884151,3.67788,1794.9,1794.8,1.53111711]
[1743892884352,3.67788,1794.9,1794.8,0.78031]
[1743892884957,3.67788,1794.9,1794.8,1.53113365]
[1743892885164,23.41129514,1794.9,1794.7,2.24224]
[1743892885455,1.4132,1794.8,1794.7,2.24224]
[1743892885652,1.4132,1794.8,1794.7,2.99304822]
[1743892885857,1.4132,1794.8,1794.7,2.24224]
[1743892887060,1.4132,1794.8,1794.7,2.99299517]
[1743892887359,4.621,1794.8,1794.7,2.99299517]
[1743892887560,4.621,1794.8,1794.7,2.99300587]
[1743892887754,5.40132,1794.8,1794.7,1.53110587]
[1743892889763,2.19352,1794.8,1794.7,1.53110587]
[1743892894064,1.4132,1794.8,1794.7,1.53110587]